bitfinex/quotes_ETHUSD_20260209
["timestamp","ask_amount","ask_price","bid_price","bid_amount"]
[1770622519433,1.23777121,2077.4,2077.0,0.001]
[1770622520261,0.32853533,2077.4,2077.0,0.001]
[1770622520578,2.44121069,2077.4,2077.0,0.001]
[1770622521129,0.90923588,2077.3,2077.0,0.001]
[1770622521951,1.20354323,2077.2,2076.8,0.001]
[1770622522164,0.90923588,2077.2,2076.8,0.001]
[1770622524344,2.11283705,2077.1,2076.8,0.001]
[1770622524551,0.90923588,2077.0,2076.6,0.001]
[1770622525045,0.91123588,2077.0,2076.6,0.001]
[1770622526762,2.11492801,2077.0,2076.6,0.001]
[1770622528767,0.90923588,2076.9,2076.6,0.001]
[1770622531668,2.11295953,2076.9,2076.6,0.001]
[1770622535273,4.81663996,2077.0,2076.6,0.001]
[1770622535274,0.90923588,2076.8,2076.6,0.001]
[1770622537679,0.90923588,2076.7,2076.6,0.001]
[1770622538481,2.11299883,2076.9,2076.6,0.001]
[1770622538682,0.90923588,2076.8,2076.6,0.001]
[1770622540591,0.002,2077.0,2076.6,0.001]
[1770622540786,0.91123588,2077.0,2076.6,0.001]
[1770622542661,1.20371707,2076.9,2076.6,0.001]
[1770622543589,2.11295295,2076.9,2076.6,0.001]
[1770622544561,0.90923588,2076.8,2076.6,0.001]
[1770622545882,2.1130396,2076.8,2076.6,0.001]
[1770622549164,9.31170566,2076.7,2075.9,0.001]
[1770622549368,1.20380372,2076.8,2075.9,0.001]
[1770622549369,0.95097013,2076.4,2075.9,0.001]
[1770622550188,0.95097013,2076.4,2075.9,1.20529507]
[1770622550391,0.95097013,2076.4,2075.9,0.001]
[1770622551102,1.20406492,2076.3,2075.9,0.001]
[1770622552372,2.15502368,2076.4,2075.9,0.001]
[1770622552881,2.15497046,2076.5,2075.9,0.001]
[1770622553587,0.95097013,2076.4,2075.9,0.001]
[1770622555181,1.20406492,2076.3,2075.9,0.001]
[1770622555379,2.15501343,2076.4,2075.9,0.001]
[1770622557005,0.95097013,2076.4,2075.9,0.001]
[1770622557684,1.20394895,2076.5,2075.9,0.8920755]
[1770622558887,0.002,2076.7,2076.3,0.8910755]
[1770622560305,0.002,2076.7,2076.3,2.09511237]
[1770622560480,0.002,2076.7,2076.3,0.8910755]
[1770622562394,0.002,2076.7,2076.3,2.09513522]
[1770622562581,0.002,2076.9,2076.5,0.8910755]
[1770622563390,1.002,2076.9,2076.2,4.81647691]
[1770622563594,1.0,2076.8,2076.3,1.20405972]
[1770622563811,0.002,2076.9,2076.3,1.20405972]
[1770622564211,0.002,2076.5,2076.3,1.20405972]
[1770622564428,0.002,2076.9,2076.3,1.20405972]
[1770622566421,0.002,2076.9,2076.4,8.36073553]
[1770622566627,0.002,2076.9,2076.5,1.20394895]
[1770622567389,0.002,2076.9,2076.6,8.36073553]
[1770622567596,0.002,2077.0,2076.6,8.36073553]
[1770622568825,0.002,2077.0,2076.7,1.203833]
[1770622569193,0.32853533,2077.4,2076.8,8.36073553]
[1770622570094,1.32853533,2077.4,2076.8,8.36073553]
[1770622570322,1.0,2077.0,2076.3,1.20406433]
[1770622570822,1.0,2076.8,2076.1,0.001]
[1770622575335,1.0,2076.7,2076.1,0.001]
[1770622576623,2.20383964,2076.7,2076.1,0.001]
[1770622576827,1.0,2076.6,2076.1,0.001]
[1770622577022,1.0,2076.6,2076.3,0.001]
[1770622579126,1.20390733,2076.6,2076.3,0.001]
[1770622579314,1.0,2076.5,2076.3,0.001]
[1770622581839,1.0,2076.5,2076.1,0.001]
[1770622581840,0.9995,2076.2,2076.1,0.001]
[1770622582045,0.9995,2076.2,2076.0,0.001]
[1770622587409,2.20363055,2076.2,2076.0,0.001]
[1770622587617,0.9995,2076.2,2076.0,0.001]
[1770622588928,0.9995,2076.5,2076.0,0.001]
[1770622589316,0.002,2076.7,2076.1,8.36317255]
[1770622589517,0.9995,2076.6,2076.0,0.001]
[1770622589720,0.9995,2076.4,2076.0,0.001]
[1770622590145,0.9995,2076.4,2076.2,0.001]
[1770622590320,1.0015,2076.3,2076.2,0.001]
[1770622593651,2.20556492,2076.3,2076.2,0.001]
[1770622594116,1.0015,2076.3,2076.2,0.001]
[1770622595142,0.002,2076.3,2076.2,0.001]
[1770622595337,1.0015,2076.3,2076.2,0.001]
[1770622596934,0.002,2076.3,2076.2,0.001]
[1770622598521,1.0015,2076.3,2076.2,0.001]
[1770622602557,1.0015,2076.3,2075.7,1.77485684]
[1770622603660,0.9995,2076.0,2075.7,1.77485684]
[1770622607558,0.9995,2075.9,2075.7,1.77485684]
[1770622608359,0.9995,2075.9,2075.7,0.001]
[1770622610848,1.20424587,2076.0,2075.7,0.001]
[1770622611044,2.20374587,2076.0,2075.7,0.001]
[1770622611446,0.002,2076.1,2075.7,0.001]
[1770622613368,0.002,2076.1,2075.4,13.18028866]
[1770622613543,0.002,2076.1,2075.5,1.20452902]
[1770622616061,0.002,2076.1,2075.7,0.001]
[1770622616370,0.002,2075.9,2075.7,0.001]
[1770622620376,1.002,2075.9,2075.7,0.001]
[1770622622973,0.002,2075.9,2075.7,0.001]
[1770622623859,1.002,2075.9,2075.7,0.001]
[1770622624165,1.002,2075.9,2075.2,1.20566056]
[1770622624366,1.0,2075.8,2075.2,0.001]
[1770622624566,1.0,2075.4,2074.8,0.01116736]
[1770622625076,1.0,2075.2,2074.8,0.01116736]
[1770622625253,1.0,2075.0,2074.2,4.87160888]
[1770622625448,1.0,2075.0,2074.4,1.20513155]
[1770622625650,1.0,2075.0,2074.6,1.20500969]
[1770622625873,1.0,2075.2,2074.7,1.20498755]
[1770622626054,1.0,2075.2,2074.6,1.20501056]
[1770622627391,1.0,2075.7,2074.8,8.41265089]
[1770622627684,1.0,2075.7,2074.8,0.05047834]
[1770622628393,1.0,2075.7,2074.6,13.18235064]
[1770622629590,1.0,2075.5,2075.0,0.001]
[1770622632964,1.002,2075.7,2075.0,0.001]
[1770622633202,1.002,2075.7,2075.0,8.36317255]
[1770622633357,0.002,2075.7,2075.0,8.36317255]
[1770622633688,1.20642237,2075.7,2075.0,1.20581927]
[1770622633887,1.0,2075.6,2075.0,1.20581927]
[1770622634972,1.0,2075.6,2075.0,0.001]
[1770622635276,1.0,2075.6,2075.0,8.36317255]
[1770622635463,1.0,2075.6,2075.0,0.001]
[1770622635789,1.0,2075.4,2075.0,0.001]
[1770622637980,1.0,2075.2,2075.0,0.001]
[1770622638982,1.0,2075.2,2074.8,0.001]
[1770622640285,1.0,2075.0,2074.2,1.20523913]
[1770622641274,1.0,2075.0,2074.2,1.25571747]
[1770622642306,1.0,2074.9,2074.1,4.82129755]
[1770622642478,1.0,2074.9,2074.2,0.05047834]
[1770622643097,1.0,2074.9,2074.1,4.82129755]
[1770622643401,1.0,2074.9,2074.2,0.05047834]
[1770622644203,1.0,2074.9,2074.8,0.001]
[1770622646699,2.20487734,2074.9,2074.8,0.001]
[1770622646902,1.0,2074.9,2074.8,0.001]
[1770622647404,1.0,2074.8,2074.0,1.20536069]
[1770622647609,0.93003094,2074.0,2073.7,0.79722107]
[1770622647907,0.93003094,2074.5,2073.8,2.00273569]
[1770622648214,4.29703094,2074.7,2074.0,1.20539488]
[1770622648505,0.93003094,2074.3,2073.9,0.79722107]
[1770622649200,4.57199398,2074.7,2074.0,1.73585689]
[1770622649406,5.50202492,2074.7,2074.0,0.79722107]
[1770622649587,5.50202492,2074.7,2074.1,0.79722107]
[1770622649786,5.50202492,2074.7,2074.0,0.79722107]
[1770622650293,0.93003094,2074.4,2073.5,4.82256445]
[1770622650492,0.93003094,2074.3,2074.0,0.79722107]
[1770622650697,0.93003094,2074.3,2073.4,2.19486317]
[1770622651075,0.49229505,2074.2,2073.4,2.19486317]
[1770622654006,1.42232599,2074.2,2073.4,2.19486317]
[1770622654188,0.34349488,2074.1,2073.4,2.19486317]
[1770622655606,0.34349488,2074.1,2073.5,0.79722107]
[1770622656184,0.34349488,2074.1,2073.6,2.14426853]
[1770622656605,0.34349488,2074.1,2073.7,0.79722107]
[1770622657305,0.34349488,2074.1,2073.8,0.79722107]
[1770622657500,0.34349488,2074.1,2073.9,0.79722107]
[1770622657709,0.34349488,2074.1,2073.7,0.79722107]
[1770622658507,0.34349488,2074.1,2073.8,1.20551644]
[1770622658807,3.367,2074.7,2074.0,0.93863582]
[1770622659482,0.93003094,2074.6,2074.1,0.79722107]
[1770622659684,0.93003094,2074.6,2073.7,8.19029642]
[1770622659685,0.93003094,2074.4,2073.7,4.57352959]
[1770622659884,0.93003094,2074.6,2073.9,0.79722107]
[1770622660487,0.93003094,2074.6,2073.9,2.00264679]
[1770622661207,0.93003094,2074.5,2073.9,0.79722107]
[1770622661403,0.93003094,2074.5,2073.9,2.00267688]
[1770622662810,0.93003094,2074.4,2073.9,0.79722107]
[1770622663012,0.93003094,2074.4,2073.9,2.00267145]
[1770622664088,0.93003094,2074.4,2073.9,0.79722107]
[1770622664288,0.93003094,2074.4,2073.9,2.00267036]
[1770622664994,0.93003094,2074.6,2073.9,2.00267036]
[1770622665199,0.93003094,2074.6,2073.9,2.9476789]
[1770622665519,3.367,2074.7,2074.0,0.94500854]
[1770622666089,3.367,2074.7,2074.1,0.79722107]
[1770622666913,0.002,2075.0,2074.7,1.20499349]
[1770622667122,0.002,2075.0,2074.6,1.20500646]
[1770622667291,0.002,2075.0,2074.7,0.79722107]
[1770622668120,0.97444569,2075.4,2074.7,0.79722107]
[1770622668487,0.97444569,2075.3,2074.4,1.20512858]
[1770622668814,0.97444569,2075.3,2074.6,2.00226735]
[1770622669210,0.97444569,2075.2,2074.6,0.79722107]
[1770622669521,0.97444569,2075.2,2074.6,2.00227193]
[1770622670508,4.34244569,2075.2,2073.7,0.94500854]
[1770622670730,0.002,2074.5,2074.1,1.2053304]
[1770622671015,0.002,2074.5,2074.0,0.94500854]
[1770622671222,0.002,2074.7,2074.1,0.94500854]
[1770622671417,0.002,2074.7,2074.1,1.39673473]
[1770622672291,0.002,2074.7,2074.2,0.94500854]
[1770622672492,0.002,2074.7,2074.1,0.45172619]
[1770622673794,0.002,2074.7,2074.2,1.20528396]
[1770622674199,0.002,2074.7,2074.3,0.45172619]
[1770622675526,0.002,2074.7,2074.4,0.45172619]
[1770622676726,0.002,2074.7,2074.4,1.65688856]
[1770622677830,0.002,2074.7,2074.4,1.6568878]
[1770622678004,0.002,2074.7,2074.4,0.45172619]
[1770622678204,0.002,2074.7,2074.4,1.65689067]
[1770622680531,0.002,2074.7,2074.4,1.6568922]
[1770622681426,0.002,2074.7,2074.4,0.45172619]
[1770622681732,0.97644569,2074.7,2074.4,0.45172619]
[1770622682029,0.97644569,2074.7,2074.2,1.20524094]
[1770622682221,0.97644569,2074.7,2074.3,1.65693697]
[1770622682423,0.97644569,2074.7,2074.3,1.20521078]
[1770622683623,0.97644569,2074.7,2074.6,0.001]
[1770622684131,0.97644569,2074.7,2073.6,0.001]
[1770622684132,0.97444569,2074.6,2073.6,0.001]
[1770622684328,0.97444569,2074.5,2073.9,1.20542985]
[1770622684833,0.97444569,2074.5,2074.0,0.45172619]
[1770622685235,0.97444569,2074.5,2074.1,0.45172619]
[1770622685532,0.97444569,2074.5,2073.7,1.20557457]
[1770622685533,0.97444569,2074.5,2073.7,1.65730076]
[1770622685731,0.97444569,2074.5,2073.8,0.45172619]
[1770622686118,0.97444569,2074.5,2073.9,0.45172619]
[1770622686320,0.97444569,2074.5,2073.8,0.45172619]
[1770622686526,0.97444569,2074.5,2073.7,1.20557457]
[1770622686731,0.97444569,2074.5,2073.8,0.45172619]
[1770622687235,0.97444569,2074.5,2073.9,1.65715709]
[1770622687437,0.002,2074.7,2074.0,0.94500854]
[1770622687740,0.002,2074.7,2074.0,1.39673473]
[1770622687910,0.002,2074.7,2074.1,0.45172619]
[1770622688114,0.97644569,2074.7,2074.1,0.45172619]
[1770622688524,0.97644569,2074.7,2074.2,0.45172619]
[1770622688839,0.97644569,2074.7,2074.0,0.45172619]
[1770622689220,0.97644569,2074.7,2074.2,1.20528396]
[1770622689740,0.97644569,2074.7,2074.3,0.45172619]
[1770622690142,0.97644569,2074.7,2074.4,0.45172619]
[1770622690440,0.97644569,2074.7,2074.3,0.45172619]
[1770622690818,0.97644569,2074.7,2074.4,0.45172619]
[1770622691020,0.97644569,2074.7,2074.3,0.45172619]
[1770622691430,0.97644569,2074.7,2074.4,0.45172619]
[1770622692238,0.97644569,2074.7,2074.5,0.45172619]
[1770622692545,0.97644569,2074.7,2074.2,1.6569774]
[1770622692935,0.97644569,2074.7,2074.3,1.20519178]
[1770622693134,0.002,2074.7,2074.3,1.20519178]
[1770622693331,0.002,2074.7,2074.4,1.20513671]
[1770622693540,0.002,2074.7,2074.4,1.6568629]
[1770622694042,0.002,2075.0,2074.4,10.97774654]
[1770622694246,0.002,2075.0,2074.4,1.6568629]
[1770622694430,0.97644569,2075.0,2074.4,1.6568629]
[1770622695247,0.97444569,2074.9,2074.4,0.45172619]
[1770622695443,0.96606482,2074.8,2074.4,0.45172619]
[1770622697130,0.002,2074.6,2074.4,0.45172619]
[1770622697430,0.002,2074.6,2074.3,1.20522432]
[1770622697631,0.002,2074.6,2074.4,0.45172619]
[1770622697836,0.002,2074.6,2074.2,0.45172619]
[1770622701747,0.002,2074.6,2074.2,1.65700599]
[1770622702050,0.002,2075.0,2074.2,2.65452813]
[1770622702231,0.98189114,2074.9,2074.2,0.45172619]
[1770622702431,0.98189114,2074.9,2074.2,1.65699627]
[1770622704830,0.98189114,2074.8,2074.2,1.65699627]
[1770622705354,0.98189114,2074.8,2074.2,1.20527008]
[1770622707355,0.98189114,2074.8,2074.3,0.45172619]
[1770622709359,0.98189114,2074.6,2074.4,0.45172619]
[1770622709566,0.98189114,2074.6,2074.1,1.20633319]
[1770622709749,0.98189114,2074.6,2074.2,0.45172619]
[1770622710664,0.98189114,2074.6,2074.4,0.001]
[1770622710862,0.98389114,2074.6,2074.4,0.001]
[1770622711360,2.18899969,2074.6,2074.4,0.001]
[1770622711573,0.98189114,2074.5,2074.4,0.001]
[1770622711869,0.98189114,2074.5,2073.5,1.20564923]
[1770622712436,0.98189114,2074.5,2073.6,1.65734606]
[1770622712840,0.98189114,2074.5,2073.7,1.44924833]
[1770622713861,0.98189114,2074.5,2073.8,1.20551644]
[1770622714059,2.18700473,2074.5,2073.8,1.20551644]
[1770622714270,0.98189114,2074.4,2073.8,1.20551644]
[1770622714437,0.98189114,2074.4,2073.9,0.45172619]
[1770622715371,0.98189114,2074.4,2074.0,0.45172619]
[1770622715538,0.98189114,2074.4,2073.8,0.45172619]
[1770622715865,0.98189114,2074.3,2073.8,0.45172619]
[1770622716567,0.98189114,2074.3,2073.7,1.20557416]
[1770622716767,0.98189114,2074.3,2073.8,0.45172619]
[1770622717266,0.98189114,2074.3,2073.7,1.20557416]
[1770622717434,0.98189114,2074.3,2073.8,0.45172619]
[1770622718036,0.98189114,2074.2,2073.9,0.45172619]
[1770622718343,0.98189114,2074.2,2073.6,1.65732019]
[1770622718566,0.98189114,2074.2,2073.7,0.45172619]
[1770622718870,0.98189114,2074.2,2073.6,1.6573561]
[1770622719169,0.98189114,2074.2,2073.5,1.6573734]
[1770622719875,0.98189114,2074.2,2073.6,0.45172619]
[1770622720173,0.98189114,2074.0,2073.6,0.45172619]
[1770622720340,0.98189114,2074.0,2073.7,0.45172619]
[1770622720975,0.98189114,2074.0,2073.3,1.00052214]
[1770622720976,0.98189114,2074.0,2073.8,0.45172619]
[1770622721175,0.98189114,2074.0,2073.5,1.2056889]
[1770622721353,0.98189114,2074.0,2073.5,1.65741509]
[1770622721553,0.98189114,2074.0,2073.6,0.45172619]
[1770622722074,0.98189114,2074.0,2073.7,0.45172619]
[1770622722282,0.98189114,2074.2,2073.6,0.45172619]
[1770622722484,0.98189114,2074.2,2073.5,0.99752214]
[1770622722979,0.98189114,2074.4,2073.5,0.99752214]
[1770622723288,0.98189114,2074.4,2073.6,0.45172619]
[1770622723483,0.98189114,2074.4,2073.9,0.001]
[1770622723661,1.20514993,2074.5,2073.9,0.001]
[1770622723662,0.98389114,2074.2,2073.9,0.001]
[1770622723862,0.98389114,2074.2,2074.0,0.45172619]
[1770622725080,0.98189114,2074.1,2074.0,0.39172619]
[1770622725374,0.92492338,2074.2,2074.0,0.39172619]
[1770622725574,0.92292338,2074.1,2074.0,0.39172619]
[1770622727484,0.92292338,2074.1,2073.9,0.001]
[1770622727794,0.92292338,2074.1,2074.0,0.39172619]
[1770622728786,0.92292338,2074.1,2073.9,0.39272619]
[1770622729283,0.92292338,2074.0,2073.5,1.20568964]
[1770622729483,0.002,2074.2,2073.5,2.17686341]
[1770622729688,0.92292338,2074.1,2073.5,1.20569086]
[1770622729890,0.92292338,2074.1,2073.4,1.20570415]
[1770622730889,0.92292338,2074.1,2073.3,0.97417255]
[1770622731089,0.92292338,2074.1,2073.3,0.003]
[1770622731485,0.92292338,2073.9,2073.3,0.003]
[1770622732393,0.92292338,2073.9,2073.3,0.97417255]
[1770622733592,2.12838171,2073.9,2073.3,0.003]
[1770622734275,0.92292338,2073.8,2073.3,0.003]
[1770622734670,0.92292338,2073.8,2072.6,4.76117255]
[1770622734870,0.92292338,2073.8,2072.2,5.32954176]
[1770622735088,0.25178321,2070.4,2068.5,0.00354]
[1770622735307,0.25178321,2070.4,2066.8,0.05047834]
[1770622735308,3.58132016,2068.5,2066.6,39.61618716]
[1770622735470,0.2335703,2068.7,2067.9,0.05047834]
[1770622735674,0.2335703,2068.7,2066.6,4.78760706]
[1770622735675,14.28253086,2068.2,2066.7,23.4657725]
[1770622735870,12.51123374,2068.2,2067.2,0.05047834]
[1770622736120,12.51123374,2068.2,2068.0,0.05047834]
[1770622736264,0.05047834,2068.0,2067.5,0.05047834]
[1770622736469,1.11106201,2067.9,2067.2,2.142]
[1770622736682,1.11106201,2067.9,2067.6,0.05047834]
[1770622736895,1.11106201,2067.9,2067.7,0.05047834]
[1770622737106,20.28150136,2068.0,2067.5,0.44863191]
[1770622737312,20.28150136,2068.0,2067.7,0.05047834]
[1770622737313,19.49521171,2068.0,2067.7,0.05047834]
[1770622737613,19.49521171,2068.0,2067.9,0.05047834]
[1770622737917,1.0,2068.7,2067.7,1.20906754]
[1770622738077,8.12655112,2068.4,2067.7,1.25953708]
[1770622738279,8.12655112,2068.4,2067.6,0.05047834]
[1770622738700,8.12655112,2068.4,2067.5,0.05047834]
[1770622738878,1.0,2068.3,2066.7,0.05047834]
[1770622739083,1.0,2068.1,2066.9,0.05047834]
[1770622739311,1.0,2067.9,2066.6,1.20966844]
[1770622739496,1.20901441,2067.8,2066.3,0.05047834]
[1770622739812,1.20901441,2067.8,2066.7,0.05047834]
[1770622740012,1.0,2067.6,2066.8,0.05047834]
[1770622740329,1.0,2067.6,2066.5,0.05047834]
[1770622740528,1.0,2067.6,2066.8,0.05047834]
[1770622740824,4.83605764,2067.9,2066.2,0.05047834]
[1770622740825,1.0,2067.9,2066.2,0.05047834]
[1770622741008,1.0,2067.9,2066.6,0.05047834]
[1770622741311,1.0,2067.9,2067.0,0.05047834]
[1770622741808,2.2089904,2067.9,2067.0,0.05047834]
[1770622742006,2.2089904,2067.9,2067.3,0.05047834]
[1770622742181,8.12655112,2067.8,2067.3,0.05047834]
[1770622742381,9.12655112,2067.8,2067.0,0.05047834]
[1770622742580,8.12655112,2067.8,2067.0,0.05047834]
[1770622742776,1.0,2067.7,2066.5,0.05047834]
[1770622743007,1.0,2067.7,2066.6,0.05047834]
[1770622743694,1.0,2067.5,2066.3,1.26036922]
[1770622743897,1.0,2067.5,2066.3,0.05047834]
[1770622744324,1.0,2067.5,2066.3,1.26035437]
[1770622744625,1.0,2067.5,2066.6,1.26018908]
[1770622744820,1.0,2067.5,2066.9,0.05047834]
[1770622745183,2.20898795,2067.9,2066.9,0.05047834]
[1770622745610,2.20898318,2067.9,2067.2,0.05047834]
[1770622745835,2.20898318,2067.9,2066.9,0.05047834]
[1770622746018,1.0,2067.8,2067.0,1.20944992]
[1770622746220,8.12655112,2067.4,2067.1,1.25989019]
[1770622746388,0.1024,2068.4,2067.1,1.25989019]
[1770622746389,1.0,2068.2,2067.2,1.20934278]
[1770622746587,1.0,2068.2,2067.4,0.05047834]
[1770622746915,1.20837159,2068.9,2068.0,0.05047834]
[1770622746916,1.0,2068.8,2068.0,0.05047834]
[1770622747211,1.0,2068.8,2067.8,0.05047834]
[1770622747511,1.0,2068.8,2068.1,0.05047834]
[1770622747711,1.0,2068.8,2068.2,1.20878058]
[1770622748217,1.0,2068.8,2068.0,1.2088958]
[1770622748907,1.0,2068.8,2067.9,4.83582003]
[1770622749115,1.0,2068.8,2068.1,1.20883651]
[1770622749685,1.0,2068.8,2067.8,1.20901441]
[1770622749890,1.0,2068.8,2068.0,0.05047834]
[1770622750717,2.2084529,2068.8,2068.0,0.05047834]
[1770622751212,2.2084529,2068.8,2067.8,1.20901441]
[1770622751921,1.0,2068.8,2068.0,1.25931889]
[1770622752426,2.2081964,2069.2,2068.0,1.25931889]
[1770622753021,1.0,2069.2,2068.1,7.760327]
[1770622753215,1.0,2069.2,2068.1,6.008093]
[1770622753609,2.20805362,2069.5,2068.1,6.008093]
[1770622753811,2.20805362,2069.5,2068.5,13.382045]
[1770622753998,2.20805362,2069.5,2068.5,5.23443]
[1770622755396,8.36001998,2069.6,2068.6,0.05047834]
[1770622755592,5.21064147,2069.6,2068.6,0.05047834]
[1770622755794,6.41861464,2069.6,2068.6,0.05047834]
[1770622757124,6.41861464,2069.6,2068.7,1.20848842]
[1770622759419,5.21064147,2069.6,2068.7,1.20848842]
[1770622760417,1.83364147,2069.6,2068.7,1.20848842]
[1770622760622,1.83364147,2069.6,2068.8,3.304378]
[1770622761211,1.83364147,2069.6,2068.9,1.20837159]
[1770622761410,1.0,2069.5,2068.7,1.20845011]
[1770622761725,1.0,2069.5,2068.8,1.20842995]
[1770622762034,6.0,2069.4,2068.8,1.20842995]
[1770622762234,1.0,2069.3,2068.0,0.05047834]
[1770622762439,1.0,2069.3,2068.6,1.20851689]
[1770622762817,1.0,2069.3,2068.5,1.20857589]
[1770622763506,2.2081964,2069.2,2068.2,7.890791]
[1770622763710,2.2081964,2069.2,2068.2,6.425791]
[1770622764419,2.2081964,2069.2,2068.1,4.83532451]
[1770622764723,2.2081964,2069.2,2068.2,3.628584]
[1770622765107,1.0,2069.1,2068.1,4.83532451]
[1770622765308,0.04837807,2068.2,2068.1,1.20883903]
[1770622765634,2.20829397,2069.1,2068.1,4.753037]
[1770622766006,2.20829397,2069.1,2068.1,3.22941]
[1770622766625,2.20829397,2069.1,2068.2,0.05047834]
[1770622767734,2.20829397,2069.1,2068.3,1.20872213]
[1770622768131,1.0,2069.0,2068.3,1.20872213]
[1770622769234,2.20824088,2069.2,2068.3,1.20872213]
[1770622769429,1.0,2069.1,2068.3,1.20872213]
[1770622770338,1.0,2069.1,2068.2,0.05047834]
[1770622772227,1.002,2069.4,2068.6,10.90117284]
[1770622772424,1.002,2069.4,2068.6,1.20854684]
[1770622773030,1.002,2069.4,2068.6,1.25902518]
[1770622774742,0.01671458,2069.3,2068.6,1.25902518]
[1770622775646,0.01671458,2069.3,2068.7,0.05047834]
[1770622777046,0.002,2069.4,2068.7,0.05047834]
[1770622777250,0.002,2069.4,2069.0,0.05047834]
[1770622778950,0.002,2069.4,2068.9,10.85221]
[1770622779245,1.83364147,2069.6,2069.1,1.20825479]
[1770622779940,1.83364147,2069.6,2069.3,0.05047834]
[1770622780141,1e-08,2069.6,2069.3,0.05047834]
[1770622780344,1.0,2070.0,2069.3,0.05047834]
[1770622781018,1.0,2069.9,2069.1,1.20825479]
[1770622781219,1.0,2069.8,2068.7,4.88435972]
[1770622781522,1.0,2069.8,2068.7,0.05047834]
[1770622781721,1.0,2069.8,2069.0,1.20830541]
[1770622782117,1.0,2069.8,2068.9,1.20834115]
[1770622782335,1.0,2069.8,2069.0,4.83312677]
[1770622782551,1.0,2069.8,2069.0,1.20829321]
[1770622782847,1.0,2069.8,2069.2,1.20816627]
[1770622783052,1.0,2069.8,2069.2,1.25864461]
[1770622783218,2.20789084,2069.8,2069.2,0.05047834]
[1770622783418,2.20788391,2069.8,2069.2,0.05047834]
[1770622783645,1.0,2069.7,2069.0,1.20827921]
[1770622783844,1.0,2069.7,2069.1,1.20824923]
[1770622784850,1.0,2069.7,2069.1,1.20823034]
[1770622785029,1.0,2069.7,2068.5,3.42747834]
[1770622785235,1.20796289,2069.6,2068.6,1.20854684]
[1770622785550,1.0,2069.5,2068.6,1.20854684]
[1770622786546,1.0,2069.5,2068.7,4.96519]
[1770622786849,1.0,2069.5,2068.9,30.0]
[1770622788148,1.0,2069.5,2069.0,1.20831319]
[1770622788552,1.0,2069.5,2068.9,1.20834963]
[1770622789125,1.0,2069.4,2068.9,1.20834963]
[1770622789743,0.002,2069.3,2068.9,1.20834963]
[1770622789942,1.002,2069.3,2068.9,1.20834963]
[1770622794372,1.0,2069.7,2068.9,1.25882797]
[1770622794671,1.0,2069.6,2068.9,1.25882797]
[1770622795178,1.0,2069.6,2068.9,1.20834963]
[1770622796677,1.0,2069.6,2068.8,0.001]
[1770622799556,1.0,2069.6,2068.9,6.562944]
[1770622800381,1.0,2069.6,2068.9,2.6216]
[1770622801572,1.0,2069.6,2069.0,1.20831319]
[1770622802781,1.0,2069.6,2069.1,0.001]
[1770622803182,0.002,2069.4,2069.1,0.001]
[1770622806960,1.0,2069.7,2069.1,0.001]
[1770622808558,1.0,2070.1,2069.1,0.001]
[1770622808973,1.0,2070.5,2069.3,1.20813801]
[1770622809176,1.0,2070.4,2069.3,1.20813801]
[1770622810259,1.0,2070.4,2069.1,0.001]
[1770622810564,1.0,2070.4,2069.2,1.20818482]
[1770622811062,1.0,2070.2,2069.1,0.001]
[1770622814990,1.0,2070.0,2069.1,0.001]
[1770622816990,1.0,2069.8,2069.1,0.001]
[1770622817184,1.0,2069.8,2069.3,0.001]
[1770622817562,1.002,2069.8,2069.3,0.001]
[1770622819190,1.0,2069.7,2069.3,0.001]
[1770622821589,1.0,2069.7,2069.1,0.001]
[1770622821590,1.0,2069.6,2069.1,0.001]
[1770622823481,0.9995,2069.4,2069.1,0.001]
[1770622824373,4.8336181,2069.8,2069.2,2.57975165]
[1770622824374,0.002,2069.8,2069.2,2.57975165]
[1770622824692,0.002,2069.8,2069.2,3.768798]
[1770622824693,1.0015,2069.8,2069.2,3.768798]
[1770622825096,1.0015,2069.8,2069.2,3.224198]
[1770622825490,1.0015,2069.8,2069.3,1.20813801]
[1770622827496,1.0015,2069.8,2069.2,13.855628]
[1770622827797,1.0015,2069.8,2069.2,11.915951]
[1770622828897,1.0015,2069.8,2069.2,10.822935]
[1770622829099,1.0015,2069.8,2069.2,7.201519]
[1770622829283,1.0015,2069.8,2069.2,5.631519]
[1770622829600,1.0015,2069.8,2069.4,2.068531]
[1770622830001,1.0015,2069.8,2069.3,1.20813801]
[1770622830483,1.0015,2069.8,2069.5,0.001]
[1770622830684,0.002,2069.6,2069.5,0.001]
[1770622831800,1.0015,2069.6,2069.5,0.001]
[1770622832384,1.0015,2069.6,2069.1,0.001]
[1770622832780,1.0015,2069.6,2069.2,2.032253]
[1770622833481,0.002,2069.6,2069.2,2.032253]
[1770622834406,1.0015,2069.6,2069.1,0.001]
[1770622836506,0.9995,2069.5,2069.1,0.001]
[1770622839087,0.002,2069.6,2069.1,0.001]
[1770622839483,1.0015,2069.6,2069.1,0.001]
[1770622841105,0.002,2069.8,2069.1,0.001]
[1770622841307,0.96871384,2070.1,2069.3,21.337721]
[1770622841610,0.96871384,2070.5,2069.6,9.90359]
[1770622841806,0.96871384,2070.5,2069.6,8.923226]
[1770622842791,0.96871384,2070.5,2069.2,29.410678]
[1770622842983,0.96871384,2070.5,2069.5,10.82216]
[1770622843187,2.17620997,2070.4,2069.6,1.20796289]
[1770622843415,0.96871384,2070.3,2069.6,1.20796289]
[1770622843998,1.20744133,2070.5,2069.6,1.20796289]
[1770622844203,3.39719653,2070.6,2069.6,1.20796289]
[1770622844204,0.002,2070.3,2069.6,1.20796289]
[1770622845609,0.9076423,2070.3,2069.6,11.796854]
[1770622845818,0.9076423,2070.3,2069.6,2.5216]
[1770622846202,0.9076423,2070.3,2069.6,4.0916]
[1770622846410,0.9076423,2070.3,2069.5,4.83185156]
[1770622846598,0.9076423,2070.3,2069.6,3.5506]
[1770622847602,0.9076423,2070.3,2069.7,1.20790452]